bitfinex-derivatives/quotes_BTCF0:USTF0_20241110
["timestamp","ask_amount","ask_price","bid_price","bid_amount"]
[1731238425711,0.04943469,79935.0,79909.0,0.12184]
[1731238425909,0.04943469,79935.0,79917.0,0.3608]
[1731238426220,0.3608,79939.0,79918.0,0.24974]
[1731238426416,0.1405,79938.0,79918.0,0.24974]
[1731238426815,0.3608,79931.0,79918.0,0.24974]
[1731238428019,0.3608,79931.0,79918.0,0.2662]
[1731238428320,0.3608,79920.0,79916.0,0.12184]
[1731238428522,0.3608,79924.0,79916.0,0.12184]
[1731238428917,0.3608,79923.0,79916.0,0.12184]
[1731238429222,0.3608,79931.0,79916.0,0.12184]
[1731238429920,0.3608,79923.0,79916.0,0.12184]
[1731238430812,0.40910906,79931.0,79916.0,0.12184]
[1731238431116,0.3608,79923.0,79916.0,0.12184]
[1731238431423,0.3608,79923.0,79909.0,0.1388]
[1731238431424,0.3608,79923.0,79915.0,0.12184]
[1731238431816,0.40910906,79931.0,79915.0,0.12184]
[1731238432118,0.3608,79931.0,79915.0,0.12184]
[1731238433025,0.3608,79931.0,79917.0,0.3608]
[1731238434324,0.04853642,79936.0,79926.0,0.3608]
[1731238434514,0.3608,79948.0,79927.0,0.3902]
[1731238435220,0.3608,79948.0,79933.0,0.3608]
[1731238435524,0.3608,79948.0,79928.0,0.39895977]
[1731238436320,0.3608,79941.0,79929.0,0.1218]
[1731238439223,0.3608,79941.0,79928.0,0.39895977]
[1731238439418,0.3608,79941.0,79930.0,0.1218]
[1731238439917,0.3608,79941.0,79928.0,0.39895977]
[1731238440116,0.13,79940.0,79929.0,0.1218]
[1731238440420,0.3608,79930.0,79929.0,0.1218]
[1731238440619,0.3608,79930.0,79925.0,0.1218]
[1731238441123,0.3608,79930.0,79924.0,9.66e-05]
[1731238441521,0.2696,79929.0,79924.0,9.66e-05]
[1731238442015,0.64496,79929.0,79924.0,9.66e-05]
[1731238442531,0.40599221,79928.0,79901.0,0.00187679]
[1731238442825,0.3608,79902.0,79901.0,0.00187679]
[1731238443420,0.36089728,79902.0,79901.0,0.00187679]
[1731238443615,0.36089728,79902.0,79901.0,9.649e-05]
[1731238451623,0.48249728,79902.0,79901.0,9.649e-05]
[1731238451827,0.36089728,79902.0,79901.0,9.649e-05]
[1731238452036,0.36089728,79902.0,79892.0,0.00281]
[1731238453127,0.36089728,79902.0,79895.0,0.3608]
[1731238453533,0.36089728,79902.0,79896.0,0.1329]
[1731238456325,9.728e-05,79902.0,79896.0,0.1329]
[1731238457236,9.728e-05,79902.0,79897.0,0.75975977]
[1731238457629,9.728e-05,79902.0,79898.0,0.129]
[1731238457931,0.00187776,79921.0,79899.0,0.39895977]
[1731238458235,0.00187776,79921.0,79907.0,0.3608]
[1731238458435,0.00187776,79921.0,79908.0,0.1298]
[1731238458734,0.00187776,79921.0,79909.0,0.1216]
[1731238460636,0.00187776,79921.0,79908.0,0.1298]
[1731238462640,0.3608,79913.0,79908.0,0.1298]
[1731238464939,0.3608,79913.0,79898.0,0.129]
[1731238465243,0.3608,79920.0,79898.0,0.129]
[1731238466034,0.3608,79920.0,79906.0,0.3608]
[1731238466542,0.3608,79920.0,79898.0,0.129]
[1731238468038,0.3608,79913.0,79898.0,0.129]
[1731238469741,0.00187776,79921.0,79901.0,0.3608]
[1731238469936,0.3608,79913.0,79901.0,0.3608]
[1731238470344,0.00187776,79921.0,79898.0,0.129]
[1731238470641,0.3608,79913.0,79901.0,0.3608]
[1731238471335,0.3608,79913.0,79901.0,0.29038852]
[1731238471732,0.3608,79906.0,79897.0,0.1355]
[1731238471934,0.3608,79906.0,79886.0,0.1395]
[1731238472135,0.3608,79906.0,79886.0,0.2774]
[1731238472136,0.3608,79899.0,79886.0,0.2774]
[1731238472436,0.3608,79899.0,79886.0,0.1379]
[1731238475445,0.31073805,79899.0,79886.0,0.1379]
[1731238475940,0.12144,79904.0,79886.0,0.1379]
[1731238476242,0.2706,79905.0,79886.0,0.1379]
[1731238476635,0.40981763,79906.0,79886.0,0.1379]
[1731238476836,0.40981763,79906.0,79893.0,0.3608]
[1731238480544,0.40981763,79906.0,79893.0,0.28089787]
[1731238481044,0.3608,79899.0,79886.0,0.1379]
[1731238481545,0.2622,79898.0,79883.0,0.3608]
[1731238481842,0.2622,79898.0,79883.0,0.35662512]
[1731238483344,0.2622,79898.0,79883.0,1.35662512]
[1731238483545,0.3608,79899.0,79883.0,1.35662512]
[1731238484654,0.3608,79899.0,79884.0,0.1348]
[1731238486648,0.3608,79914.0,79884.0,0.1348]
[1731238486846,0.3608,79914.0,79890.0,0.3608]
[1731238487046,0.4091015,79914.0,79890.0,0.3608]
[1731238487545,0.4091015,79914.0,79898.0,0.3608]
[1731238487744,0.4091015,79914.0,79899.0,0.2682]
[1731238490150,0.03063171,79913.0,79899.0,0.2682]
[1731238490349,0.4091015,79914.0,79899.0,0.2682]
[1731238490656,0.03063199,79913.0,79899.0,0.2682]
[1731238490857,0.4091015,79914.0,79899.0,0.2682]
[1731238491151,0.03063196,79913.0,79899.0,0.2682]
[1731238491349,0.03063198,79912.0,79899.0,0.2682]
[1731238491550,0.4091015,79914.0,79899.0,0.2682]
[1731238491747,0.03063184,79913.0,79899.0,0.2682]
[1731238491947,0.4091015,79914.0,79899.0,0.2682]
[1731238492147,0.03063186,79913.0,79899.0,0.2682]
[1731238492449,0.4091015,79914.0,79899.0,0.2682]
[1731238492450,0.03063186,79912.0,79899.0,0.2682]
[1731238492653,0.4091015,79914.0,79899.0,0.2682]
[1731238492854,0.03063193,79913.0,79899.0,0.2682]
[1731238493157,0.4091015,79914.0,79899.0,0.2682]
[1731238493456,0.4091015,79914.0,79900.0,0.1389]
[1731238494048,0.3608,79910.0,79900.0,0.1389]
[1731238496154,0.17750355,79917.0,79905.0,0.3608]
[1731238501559,0.17750355,79917.0,79901.0,0.3608]
[1731238501560,0.3608,79913.0,79901.0,0.3608]
[1731238503758,0.3608,79914.0,79902.0,0.3608]
[1731238507962,0.3608,79906.0,79901.0,1.00108]
[1731238508156,0.3608,79906.0,79901.0,1.0]
[1731238509759,0.3608,79914.0,79901.0,1.0]
[1731238509961,0.03063193,79913.0,79901.0,1.0]
[1731238510161,0.3608,79907.0,79901.0,1.0]
[1731238510360,0.03063189,79906.0,79901.0,1.0]
[1731238510570,0.3608,79907.0,79901.0,1.0]
[1731238510768,0.3608,79914.0,79901.0,1.0]
[1731238510964,0.03063148,79913.0,79901.0,1.0]
[1731238511267,0.03063148,79912.0,79901.0,1.05006195]
[1731238511458,0.3608,79906.0,79901.0,1.05006195]
[1731238511865,0.03063318,79905.0,79901.0,1.05006195]
[1731238512059,0.03063318,79904.0,79901.0,1.05006195]
[1731238512268,0.03063318,79903.0,79901.0,1.05006195]
[1731238512469,0.03063318,79902.0,79901.0,1.05006195]
[1731238512966,0.03063296,79902.0,79901.0,1.05006195]
[1731238513661,0.40936683,79906.0,79901.0,1.05006195]
[1731238513862,0.03063253,79905.0,79901.0,1.05006195]
[1731238514064,0.03063253,79904.0,79901.0,1.05006195]
[1731238514273,0.03063253,79903.0,79901.0,1.05006195]
[1731238514462,0.03063253,79902.0,79901.0,1.05006195]
[1731238514956,0.03063281,79902.0,79901.0,1.05006195]
[1731238515464,0.03063281,79905.0,79901.0,1.05006195]
[1731238516160,0.40936683,79906.0,79901.0,1.05006195]
[1731238517662,0.3608,79906.0,79901.0,1.05006195]
[1731238523166,0.06902887,79905.0,79901.0,0.96399836]
[1731238523363,0.03063277,79904.0,79901.0,0.96399836]
[1731238523569,0.03063277,79903.0,79901.0,0.96399836]
[1731238523769,0.03063277,79902.0,79901.0,0.96399836]
[1731238523969,0.03063277,79905.0,79901.0,0.96399836]
[1731238524179,0.03063277,79904.0,79901.0,0.96399836]
[1731238524379,0.03063277,79903.0,79901.0,0.96399836]
[1731238524577,0.3608,79906.0,79901.0,0.96399836]
[1731238524876,0.0306331,79905.0,79901.0,0.96399836]
[1731238525066,0.03063271,79904.0,79901.0,0.96399836]
[1731238525268,0.03063271,79903.0,79901.0,0.96399836]
[1731238525578,0.03063269,79902.0,79901.0,0.96399836]
[1731238526574,0.03063294,79902.0,79901.0,0.96399836]
[1731238526774,0.03063294,79905.0,79901.0,0.96399836]
[1731238528972,0.0690288,79905.0,79901.0,0.96399836]
[1731238530283,0.3608,79906.0,79901.0,0.96399836]
[1731238533687,0.3608,79906.0,79901.0,1.01406031]
[1731238533888,0.3608,79914.0,79901.0,1.01406031]
[1731238534383,0.03063079,79913.0,79901.0,1.01406031]
[1731238534587,0.3608,79914.0,79901.0,1.01406031]
[1731238534783,0.03063114,79913.0,79901.0,1.01406031]
[1731238534985,0.40912785,79914.0,79901.0,1.01406031]
[1731238535191,0.03063126,79913.0,79901.0,1.01406031]
[1731238535380,0.03063134,79912.0,79901.0,1.01406031]
[1731238535687,0.40912785,79914.0,79901.0,1.01406031]
[1731238537594,0.36267767,79922.0,79906.0,0.3608]
[1731238537796,0.00187767,79922.0,79907.0,0.4019]
[1731238538000,0.00187767,79922.0,79908.0,0.12096]
[1731238538295,0.06912122,79921.0,79908.0,0.12096]
[1731238538489,0.03073134,79920.0,79908.0,0.12096]
[1731238538793,0.3608,79923.0,79908.0,0.12096]
[1731238538794,0.3608,79930.0,79913.0,0.3608]
[1731238538991,0.3608,79930.0,79914.0,0.12096]
[1731238539787,0.4113973,79939.0,79914.0,0.12096]
[1731238540191,0.4113973,79939.0,79913.0,0.3608]
[1731238540393,0.3608,79927.0,79914.0,0.12096]
[1731238540592,0.3608,79927.0,79913.0,0.3608]
[1731238540792,0.3608,79927.0,79914.0,0.12096]
[1731238541189,0.3608,79927.0,79913.0,0.40900509]
[1731238541393,0.3608,79927.0,79914.0,0.12096]
[1731238542897,0.3608,79927.0,79915.0,0.12096]
[1731238543594,0.3608,79927.0,79913.0,0.40900509]
[1731238543804,0.3608,79927.0,79897.0,0.48363699]
[1731238544093,0.3608,79927.0,79902.0,0.4004]
[1731238544899,0.3608,79927.0,79917.0,0.3608]
[1731238545505,0.3608,79927.0,79910.0,0.12096]
[1731238546004,0.3608,79927.0,79907.0,0.12096]
[1731238546212,0.3608,79927.0,79904.0,0.3608]
[1731238546498,0.3608,79920.0,79904.0,0.3608]
[1731238549300,0.3608,79920.0,79902.0,0.4004]
[1731238549997,0.3608,79920.0,79904.0,0.3608]
[1731238552500,0.1363,79929.0,79904.0,0.3608]
[1731238553203,0.3608,79939.0,79911.0,0.3608]
[1731238553409,0.62376,79939.0,79912.0,0.12096]
[1731238553598,0.3608,79932.0,79912.0,0.12096]
[1731238555308,0.3608,79932.0,79911.0,0.3608]
[1731238555509,0.3608,79932.0,79912.0,0.12096]
[1731238556099,0.3608,79932.0,79919.0,0.3608]
[1731238556706,0.3608,79922.0,79911.0,0.3608]
[1731238557003,0.267,79921.0,79911.0,0.3608]
[1731238557211,0.4091,79921.0,79911.0,0.3608]
[1731238557408,0.4091,79921.0,79911.0,0.36052313]
[1731238558904,0.45905692,79921.0,79911.0,0.36052313]
[1731238559411,0.45905692,79921.0,79911.0,0.36043095]
[1731238560408,0.3608,79920.0,79911.0,0.36043095]
[1731238561406,0.03062811,79919.0,79911.0,0.36043095]
[1731238561607,0.3608,79920.0,79900.0,0.05006257]
[1731238561608,0.3608,79912.0,79900.0,0.05006257]
[1731238562208,0.3608,79905.0,79901.0,1.01406031]
[1731238563205,0.1314,79904.0,79901.0,1.01406031]
[1731238570012,0.3608,79905.0,79901.0,1.01406031]
[1731238576716,0.41088501,79912.0,79901.0,1.01406031]
[1731238579922,0.3608,79909.0,79901.0,1.01406031]
[1731238582318,0.03063287,79908.0,79901.0,1.01406031]
[1731238582518,0.03063287,79907.0,79901.0,1.01406031]
[1731238582814,0.03063287,79906.0,79901.0,1.01406031]
[1731238583014,0.3608,79902.0,79901.0,1.01406031]
[1731238583214,0.39143375,79902.0,79901.0,1.01406031]
[1731238583418,0.3608,79902.0,79901.0,1.0087491]
[1731238584829,1.03628,79902.0,79901.0,1.0087491]
[1731238585018,1.03628,79902.0,79888.0,0.00187684]
[1731238585019,0.37548,79901.0,79888.0,0.00187684]
[1731238585221,0.3608,79889.0,79871.0,0.1314]
[1731238585528,0.12080786,79888.0,79871.0,0.0616965]
[1731238586123,0.12072,79887.0,79871.0,0.0616965]
[1731238586432,0.3608,79882.0,79871.0,0.0616965]
[1731238587125,0.3608,79872.0,79871.0,0.0616965]
[1731238588320,0.3608,79872.0,79867.0,0.22217508]
[1731238589527,0.3608,79882.0,79870.0,0.3608]
[1731238590628,0.1396,79881.0,79867.0,0.00187782]
[1731238590928,0.3608,79882.0,79856.0,0.01283643]
[1731238591124,0.3608,79882.0,79865.0,0.3608]
[1731238591532,0.3608,79882.0,79866.0,0.1382]
[1731238591826,0.53054537,79887.0,79866.0,0.1382]
[1731238591827,0.3608,79875.0,79866.0,0.1382]
[1731238592228,0.19407224,79887.0,79866.0,0.1382]
[1731238592229,0.3608,79883.0,79866.0,0.1382]
[1731238593019,0.3608,79871.0,79866.0,0.1382]
[1731238593739,0.3608,79883.0,79866.0,0.1382]
[1731238594030,0.3608,79871.0,79866.0,0.1382]
[1731238595626,0.3608,79871.0,79867.0,0.1345]
[1731238597222,0.04985386,79877.0,79867.0,0.1345]
[1731238597537,0.3608,79883.0,79867.0,0.1345]
[1731238598441,0.1394,79885.0,79867.0,0.1345]
[1731238599035,0.49872,79886.0,79867.0,0.1345]
[1731238599236,0.12048,79885.0,79871.0,0.3608]
[1731238599539,0.12048,79885.0,79872.0,0.1392]
[1731238600626,0.54771337,79886.0,79872.0,0.1392]
[1731238600828,0.40979337,79886.0,79872.0,0.1392]
[1731238601125,0.3608,79886.0,79872.0,0.1392]
[1731238601328,0.3608,79886.0,79879.0,0.3608]
[1731238602835,0.07550811,79893.0,79879.0,0.3608]
[1731238604925,0.05046213,79893.0,79879.0,0.3608]
[1731238605235,0.3608,79898.0,79879.0,0.3608]
[1731238605832,0.04906186,79895.0,79879.0,0.41087573]
[1731238606432,0.1335,79894.0,79879.0,0.41087573]
[1731238607944,0.36088786,79888.0,79879.0,0.41087573]
[1731238608246,0.12048,79887.0,79879.0,0.05007573]
[1731238613333,8.786e-05,79888.0,79879.0,0.05007573]
[1731238613939,0.04912359,79888.0,79879.0,0.05007573]
[1731238614139,8.786e-05,79888.0,79879.0,0.05007573]
[1731238617044,8.786e-05,79888.0,79883.0,0.3608]
[1731238617240,8.786e-05,79888.0,79884.0,0.2743]
[1731238617966,0.0501286,79888.0,79884.0,0.2743]
[1731238618152,8.786e-05,79888.0,79884.0,0.2743]
[1731238629669,0.3608,79949.0,79887.0,0.3608]
[1731238629862,0.02503805,79945.0,79926.0,0.7216]
[1731238630057,0.02503805,79945.0,79938.0,0.3608]
[1731238630266,0.138,79944.0,79926.0,0.3608]
[1731238630467,0.3608,79941.0,79926.0,0.3608]
[1731238630666,0.2692,79944.0,79933.0,0.3608]
[1731238631071,0.138,79944.0,79933.0,0.3608]
[1731238632271,0.138,79944.0,79940.0,0.3608]
[1731238634073,0.04991223,79950.0,79940.0,0.3608]
[1731238634270,0.15022884,79956.0,79940.0,0.3608]
[1731238634873,0.144,79956.0,79952.0,0.3608]
[1731238635076,0.19454155,79956.0,79952.0,0.3608]
[1731238635473,0.20083198,79956.0,79952.0,0.3608]
[1731238636076,0.19454155,79956.0,79952.0,0.3608]
[1731238637074,0.05054155,79956.0,79952.0,0.3608]
[1731238637273,0.00824713,79961.0,79952.0,0.3608]
[1731238637479,0.00187663,79961.0,79952.0,0.3608]
[1731238637976,0.00813452,79961.0,79952.0,0.3608]
[1731238638469,0.00187663,79961.0,79952.0,0.3608]
[1731238638870,0.00187663,79961.0,79953.0,0.1433]
[1731238639980,0.00187663,79961.0,79952.0,0.3608]
[1731238650894,0.03061571,79960.0,79952.0,0.3608]
[1731238651092,0.00187663,79961.0,79952.0,0.3608]
[1731238651487,0.03062381,79960.0,79952.0,0.3608]
[1731238651684,0.00187663,79961.0,79952.0,0.3608]
[1731238651685,0.03062381,79959.0,79952.0,0.3608]
[1731238651888,0.03062381,79958.0,79952.0,0.3608]
[1731238652088,0.03062381,79957.0,79952.0,0.3608]
[1731238652296,0.03062381,79956.0,79952.0,0.3608]
[1731238652594,0.00187663,79961.0,79952.0,0.3608]
[1731238652595,0.0689978,79955.0,79952.0,0.3608]
[1731238652791,0.0689978,79954.0,79952.0,0.3608]
[1731238652995,0.00187663,79961.0,79952.0,0.3608]
[1731238652996,0.03062381,79953.0,79952.0,0.3608]
[1731238653193,0.06899799,79960.0,79952.0,0.3608]
[1731238653387,0.15616299,79965.0,79952.0,0.3608]
[1731238657803,0.3608,79959.0,79940.0,0.3608]
[1731238657997,0.11976,79959.0,79947.0,0.3608]
[1731238658698,0.3608,79957.0,79938.0,0.1379]
[1731238659891,0.3608,79949.0,79929.0,0.3608]
[1731238660094,0.26106,79948.0,79929.0,0.3608]
[1731238660397,0.26106,79948.0,79938.0,0.05003878]
[1731238661401,0.1413,79948.0,79943.0,0.3608]
[1731238661704,0.11976,79947.0,79943.0,0.3608]
[1731238661898,0.11976,79947.0,79943.0,0.29041651]
[1731238664708,0.19121827,79948.0,79943.0,0.29041651]
[1731238667500,0.04991827,79948.0,79943.0,0.29041651]
[1731238667808,0.03061964,79947.0,79938.0,0.05003878]
[1731238668016,0.03061964,79946.0,79938.0,0.05003878]
[1731238668312,0.03061964,79945.0,79938.0,0.05003878]
[1731238668500,0.66144,79949.0,79938.0,0.05003878]
[1731238668802,0.0306214,79948.0,79938.0,0.05003878]
[1731238669007,0.0306214,79947.0,79938.0,0.05003878]
[1731238669211,0.0306214,79946.0,79938.0,0.05003878]
[1731238669409,0.0306214,79945.0,79938.0,0.05003878]
[1731238669604,0.3608,79949.0,79938.0,0.05003878]
[1731238669800,0.15042155,79948.0,79938.0,0.05003878]
[1731238670000,0.03062155,79947.0,79938.0,0.05003878]
[1731238670404,0.03062162,79946.0,79938.0,0.05003878]
[1731238670597,0.1504214,79945.0,79938.0,0.05003878]
[1731238670813,0.1198,79945.0,79938.0,0.05003878]
[1731238672099,0.1198,79945.0,79938.0,0.03523393]
[1731238673710,0.03062152,79944.0,79938.0,0.03523393]
[1731238674007,0.03062152,79943.0,79938.0,0.03523393]
[1731238674205,0.03062152,79942.0,79938.0,0.03523393]
[1731238674406,0.06900347,79941.0,79938.0,0.03523393]
[1731238674605,0.1198,79945.0,79938.0,0.03523393]
[1731238674606,0.16978527,79945.0,79938.0,0.03523393]
[1731238674804,0.03062153,79944.0,79938.0,0.03523393]
[1731238675011,0.16978527,79945.0,79938.0,0.03523393]
[1731238675012,0.06900367,79943.0,79938.0,0.03523393]
[1731238675210,0.3608,79941.0,79928.0,0.4989]
[1731238675408,0.06900367,79940.0,79928.0,0.4989]
[1731238677011,0.06900367,79940.0,79928.0,0.49884]
[1731238677607,0.20420367,79940.0,79928.0,0.49884]
[1731238677808,0.06900367,79939.0,79928.0,0.49884]
[1731238678814,0.06900367,79939.0,79928.0,0.49868958]
[1731238680210,0.1352,79940.0,79928.0,0.49868958]
[1731238680411,0.0690037,79939.0,79928.0,0.49868958]
[1731238680618,0.0690037,79938.0,79928.0,0.49868958]
[1731238680915,0.1352,79940.0,79928.0,0.49868958]
[1731238682311,0.1352,79940.0,79928.0,0.42829557]
[1731238682517,0.1352,79940.0,79928.0,0.47834061]
[1731238684717,0.3608,79941.0,79928.0,0.47834061]
[1731238685111,0.03062295,79940.0,79928.0,0.39230462]
[1731238685304,0.03062295,79939.0,79928.0,0.39230462]
[1731238685507,0.3608,79941.0,79928.0,0.39230462]
[1731238685718,0.03062295,79940.0,79928.0,0.39230462]
[1731238685911,0.03062238,79939.0,79928.0,0.39230462]
[1731238686105,0.3608,79941.0,79928.0,0.39230462]
[1731238686615,0.03062283,79940.0,79928.0,0.39230462]
[1731238686920,0.3608,79941.0,79928.0,0.39230462]
[1731238687216,0.03062284,79940.0,79928.0,0.39230462]
[1731238687417,0.03062284,79939.0,79928.0,0.39230462]
[1731238687606,0.03062284,79938.0,79928.0,0.39230462]
[1731238687806,0.3608,79941.0,79928.0,0.39230462]
[1731238688006,0.03062258,79940.0,79928.0,0.39230462]
[1731238688216,0.03062258,79939.0,79928.0,0.39230462]
[1731238688520,0.3608,79941.0,79929.0,0.141]
[1731238688820,0.02502556,79938.0,79929.0,0.141]
[1731238689008,0.06900406,79937.0,79929.0,0.141]
[1731238690010,0.06900406,79937.0,79935.0,0.3608]
[1731238690208,0.06900406,79936.0,79935.0,0.3608]
[1731238690614,0.03062176,79936.0,79935.0,0.3608]
[1731238691015,0.00064,79941.0,79935.0,0.3608]
[1731238691215,0.03061904,79940.0,79935.0,0.3608]
[1731238691815,0.068998,79939.0,79935.0,0.3608]
[1731238692413,0.03061904,79938.0,79935.0,0.3608]
[1731238692619,0.27075081,79955.0,79935.0,0.3608]
[1731238692620,0.03061904,79937.0,79935.0,0.3608]
[1731238692924,0.3608,79956.0,79935.0,0.73612]
[1731238693222,0.21947112,79955.0,79942.0,0.3608]
[1731238693521,0.03837705,79954.0,79943.0,0.1343]
[1731238693721,0.03837705,79953.0,79943.0,0.1343]
[1731238693916,0.03837705,79952.0,79943.0,0.1343]
[1731238694117,0.03837705,79951.0,79943.0,0.1343]
[1731238694413,0.03837705,79950.0,79943.0,0.1343]
[1731238694618,0.41125454,79956.0,79943.0,0.1343]
[1731238694924,0.03837695,79955.0,79943.0,0.1343]
[1731238695222,0.03837695,79954.0,79943.0,0.1343]
[1731238695412,0.03837695,79953.0,79943.0,0.1343]
[1731238695618,0.03837695,79952.0,79943.0,0.1343]
[1731238695814,0.41125454,79956.0,79943.0,0.1343]
[1731238696030,0.41125454,79956.0,79944.0,0.1394]
[1731238697417,0.41125454,79956.0,79944.0,0.05337956]
[1731238699121,0.05045454,79956.0,79951.0,0.3608]
[1731238699418,0.3608,79957.0,79951.0,0.3608]
[1731238699926,0.00187669,79961.0,79951.0,0.3608]
[1731238700317,0.05084809,79961.0,79951.0,0.3608]
[1731238700512,0.00187669,79961.0,79951.0,0.3608]
[1731238701624,0.3608,79959.0,79951.0,0.3608]
[1731238702020,0.03061535,79958.0,79951.0,0.3608]
[1731238702321,0.3608,79959.0,79951.0,0.3608]
[1731238702527,0.0306156,79958.0,79951.0,0.3608]
[1731238702726,0.3608,79959.0,79951.0,0.3608]
[1731238702928,0.03061569,79958.0,79951.0,0.3608]
[1731238703219,0.3608,79959.0,79951.0,0.3608]
[1731238703828,0.06899097,79958.0,79951.0,0.3608]
[1731238704131,0.15862212,79969.0,79951.0,0.3608]
[1731238704132,0.13625081,79979.0,79955.0,0.3608]
[1731238704419,0.13625081,79979.0,79967.0,0.3608]
[1731238704621,0.3608,79980.0,79967.0,0.3608]
[1731238704817,0.13625081,79978.0,79967.0,0.3608]
[1731238705024,0.13625081,79977.0,79967.0,0.3608]
[1731238705422,0.13625081,79979.0,79967.0,0.3608]
[1731238705623,0.00622337,79979.0,79967.0,0.3608]
[1731238705921,0.36144,79980.0,79967.0,0.3608]
[1731238706122,0.36714597,79980.0,79967.0,0.3608]
[1731238706426,0.11944,79981.0,79967.0,0.3608]
[1731238706623,0.13625081,79985.0,79975.0,0.3608]
[1731238706930,0.13625081,79985.0,79975.0,0.27480592]
[1731238707225,0.18989072,79987.0,79975.0,0.27480592]
[1731238708626,0.19629299,79987.0,79975.0,0.27480592]
[1731238708818,0.04969072,79987.0,79984.0,0.3608]
[1731238709130,0.78025081,80005.0,79984.0,0.3608]
[1731238709331,0.03835978,79998.0,79984.0,0.3608]
[1731238709527,0.03835859,79997.0,79984.0,0.3608]
[1731238709728,0.03835859,79996.0,79984.0,0.3608]
[1731238709932,0.3608,79992.0,79984.0,0.3608]
[1731238711126,0.1409,79991.0,79984.0,0.3608]
[1731238711331,0.1409,79991.0,79975.0,0.27480592]
[1731238711627,0.1409,79991.0,79972.0,0.0001293]
[1731238711628,0.3608,79985.0,79972.0,0.0001293]
[1731238711830,0.00076,79991.0,79978.0,0.3608]
[1731238712036,0.13625081,80020.0,79990.0,0.3608]
[1731238712223,0.11944,80016.0,79999.0,0.3608]
[1731238712429,0.48024,80016.0,79999.0,0.3608]
[1731238712623,0.3608,80016.0,79999.0,0.3608]
[1731238712829,0.46833175,80000.0,79999.0,0.3608]
[1731238715527,0.1,80000.0,79999.0,0.3608]
[1731238716532,0.46833175,80000.0,79999.0,0.3608]
[1731238718636,0.58745175,80000.0,79999.0,0.3608]
[1731238719434,0.61885994,80000.0,79999.0,0.3608]
[1731238721240,0.61894607,80000.0,79999.0,0.3608]
[1731238721437,0.94825175,80000.0,79990.0,0.3608]
[1731238721739,0.94825175,80000.0,79983.0,0.00187555]
[1731238721740,0.72913175,79991.0,79983.0,0.00187555]
[1731238721943,0.36833175,79984.0,79983.0,0.00187555]
[1731238722735,0.58064,80000.0,79983.0,0.00187555]
[1731238722936,0.06971118,79999.0,79988.0,0.3608]
[1731238723139,0.06971118,79998.0,79988.0,0.3608]
[1731238723429,0.36833175,79989.0,79988.0,0.3608]
[1731238724043,0.36833175,79989.0,79983.0,0.00187555]
[1731238724235,0.36833175,79984.0,79983.0,0.00187555]
[1731238724839,0.39919863,79984.0,79983.0,0.00109407]
[1731238725832,0.36833175,79984.0,79983.0,0.00109407]
[1731238726645,0.48745175,79984.0,79983.0,0.00109407]
[1731238729749,0.48745175,79984.0,79964.0,0.3608]
[1731238730041,0.36833175,79976.0,79964.0,0.3608]
[1731238730233,0.36833175,79965.0,79964.0,0.28584171]
[1731238730438,0.31832113,79965.0,79964.0,0.28584171]
[1731238730750,0.11912,79971.0,79964.0,0.28584171]
[1731238731348,0.31832113,79965.0,79964.0,0.28584171]
[1731238732039,0.11912,79971.0,79964.0,0.28584171]
[1731238732239,0.31832113,79970.0,79964.0,0.28578171]
[1731238733236,0.11912,79971.0,79958.0,0.3608]
[1731238733237,0.31832113,79965.0,79958.0,0.3608]
[1731238733545,0.31832113,79966.0,79958.0,0.3608]
[1731238734338,0.11912,79968.0,79958.0,0.3608]
[1731238737034,0.64834,79974.0,79958.0,0.3608]
[1731238737239,0.31832113,79970.0,79958.0,0.3608]
[1731238738150,0.11912,79973.0,79958.0,0.3608]
[1731238738349,0.31832113,79972.0,79965.0,0.3608]
[1731238739042,0.36144,79974.0,79965.0,0.3608]
[1731238739240,0.3608,79974.0,79965.0,0.3608]
[1731238739643,0.00011471,79975.0,79965.0,0.3608]
[1731238739853,0.00011471,79975.0,79966.0,0.1361]
[1731238740051,0.00011471,79975.0,79966.0,0.4969]
[1731238740952,0.03077313,79974.0,79966.0,0.4969]
[1731238741142,0.03077313,79973.0,79966.0,0.4969]
[1731238741457,0.00011471,79975.0,79957.0,0.3608]
[1731238741655,0.31832113,79960.0,79949.0,0.3608]
[1731238742149,0.31832113,79960.0,79958.0,0.3608]
[1731238742447,0.5047,79970.0,79958.0,0.3608]
[1731238742448,0.50542,79970.0,79958.0,0.29434697]
[1731238742648,0.31832113,79966.0,79958.0,0.29434697]
[1731238742854,0.82366113,79970.0,79958.0,0.29434697]
[1731238743049,0.03061113,79969.0,79958.0,0.29434697]
[1731238743353,0.03061113,79968.0,79958.0,0.29434697]
[1731238743542,0.03061113,79967.0,79958.0,0.29434697]
[1731238743738,0.03061113,79966.0,79958.0,0.29434697]
[1731238743943,0.36148,79970.0,79959.0,0.1354]
[1731238744149,0.03061154,79969.0,79959.0,0.1354]
[1731238744345,0.03061154,79968.0,79959.0,0.1354]
[1731238744551,0.03061154,79967.0,79959.0,0.1354]
[1731238744747,0.03061139,79966.0,79959.0,0.4354]
[1731238744947,0.3608,79970.0,79959.0,0.4354]
[1731238745146,0.03061032,79969.0,79959.0,0.4354]
[1731238745447,0.03061032,79968.0,79959.0,0.4354]
[1731238745647,0.3608,79970.0,79959.0,0.4354]
[1731238745850,0.00011471,79975.0,79967.0,0.3608]
[1731238746154,0.00011471,79975.0,79974.0,0.3608]
[1731238747143,0.00011471,79975.0,79968.0,0.2755]
[1731238747339,0.03090064,79974.0,79968.0,0.2755]
[1731238748255,0.00011471,79975.0,79965.0,0.3608]
[1731238748256,0.31832113,79971.0,79965.0,0.3608]
[1731238748552,0.03090064,79970.0,79964.0,0.3608]
[1731238748749,0.03090064,79969.0,79964.0,0.3608]
[1731238748964,0.31832113,79971.0,79964.0,0.3608]
[1731238749155,0.31832113,79970.0,79964.0,0.3608]
[1731238750348,0.31832113,79967.0,79964.0,0.3608]
[1731238750544,0.19271907,79974.0,79945.0,0.00152]
[1731238750545,0.26829049,79952.0,79945.0,0.00152]
[1731238750745,0.11907167,79966.0,79944.0,0.0722136]
[1731238750746,0.3608,79946.0,79944.0,0.0722136]
[1731238751049,0.26829049,79945.0,79944.0,0.0722136]
[1731238751446,0.26829049,79945.0,79944.0,0.0227793]